fUST/lending_fUST_20240314
["ID","MTS","AMOUNT","RATE_DAILY","PERIOD"]
[318685863,1710354643430,-832.86207007,0.00019303,2]
[318685864,1710354643443,-768.90792993,0.00019303,2]
[318685865,1710354643456,-206.62035388,0.00019303,2]
[318685866,1710354643469,-293.37964612,0.00019303,2]
[318685867,1710354643479,-830.72,0.00019303,2]
[318685868,1710354643490,-500.0,0.00019304,2]
[318685869,1710354643500,-413.09895582,0.00019304,2]
[318685870,1710354643513,-500.0,0.00019304,2]
[318685871,1710354643524,-500.0,0.00019304,2]
[318685872,1710354643535,-500.0,0.00019304,2]
[318685873,1710354643546,-611.31,0.00019304,2]
[318685874,1710354643556,-611.31,0.00019304,2]
[318685875,1710354643567,-500.0,0.00019304,2]
[318685876,1710354643579,-500.0,0.00019304,2]
[318685877,1710354643590,-500.0,0.00019304,2]
[318685878,1710354643601,-500.0,0.00019304,2]
[318685879,1710354643612,-500.0,0.00019304,2]
[318685880,1710354643624,-500.0,0.00019304,2]
[318685881,1710354643635,-500.0,0.00019304,2]
[318685882,1710354643646,-500.0,0.00019304,2]
[318685883,1710354643655,-818.99,0.00019304,2]
[318685884,1710354643665,-818.99,0.00019304,2]
[318685885,1710354643675,-500.0,0.00019304,2]
[318685886,1710354643684,-500.0,0.00019304,2]
[318685887,1710354643694,-500.0,0.00019304,2]
[318685888,1710354643705,-500.0,0.00019304,2]
[318685889,1710354643715,-555.51,0.00019304,2]
[318685890,1710354643726,-555.51,0.00019304,2]
[318685891,1710354643737,-500.0,0.00019304,2]
[318685892,1710354643747,-500.0,0.00019304,2]
[318685893,1710354643758,-278.291279,0.00019304,2]
[318685894,1710354643768,-500.0,0.00019304,2]
[318685895,1710354643778,-500.0,0.00019304,2]
[318685896,1710354643789,-500.0,0.00019304,2]
[318685897,1710354643799,-1549.94,0.00019304,2]
[318685898,1710354643809,-606.72880065,0.00019304,2]
[318685899,1710354643822,-943.21119935,0.00019304,2]
[318685900,1710354643832,-500.0,0.00019304,2]
[318685901,1710354643842,-500.0,0.00019304,2]
[318685902,1710354643853,-136.4249068,0.00019304,2]
[318685931,1710354646673,-363.5750932,0.00019304,2]
[318685933,1710354646684,-500.0,0.00019304,2]
[318685934,1710354646694,-151.0,0.00019304,2]
[318685936,1710354646709,-151.0,0.00019304,2]
[318685938,1710354646720,-151.0,0.00019304,2]
[318685939,1710354646731,-268.725693,0.00019304,2]
[318685940,1710354646741,-268.725693,0.00019304,2]
[318685941,1710354646752,-500.0,0.00019304,2]
[318685942,1710354646762,-242.98,0.00019304,2]
[318685943,1710354646773,-582.75,0.00019304,2]
[318685945,1710354646783,-313.28,0.00019304,2]
[318685947,1710354646794,-151.0,0.00019304,2]
[318685949,1710354646804,-801.97,0.00019304,2]
[318685951,1710354646814,-1601.77,0.00019304,2]
[318685953,1710354646825,-1601.77,0.00019304,2]
[318685955,1710354646835,-500.0,0.00019304,2]
[318685957,1710354646845,-500.0,0.00019305,2]
[318685964,1710354646951,-500.0,0.00019305,2]
[318685965,1710354646961,-438.49815719,0.00019305,2]
[318685966,1710354646971,-500.0,0.00019305,2]
[318685967,1710354646980,-500.0,0.00019305,2]
[318685968,1710354646989,-500.0,0.00019305,2]
[318685969,1710354646998,-500.0,0.00019305,2]
[318685970,1710354647007,-500.0,0.00019305,2]
[318685971,1710354647016,-500.0,0.00019305,2]
[318685972,1710354647026,-62.74216511,0.00019305,2]
[318685973,1710354647041,-437.25783489,0.00019305,2]
[318685974,1710354647050,-500.0,0.00019305,2]
[318685975,1710354647059,-500.0,0.00019305,2]
[318685976,1710354647072,-353.54654477,0.00019305,2]
[318685977,1710354647082,-500.0,0.00019305,2]
[318685978,1710354647091,-398.8383494,0.00019305,2]
[318685979,1710354647101,-500.0,0.00019305,2]
[318685980,1710354647111,-500.0,0.00019305,2]
[318685981,1710354647121,-500.0,0.00019305,2]
[318685982,1710354647130,-500.0,0.00019305,2]
[318685983,1710354647141,-500.0,0.00019305,2]
[318685984,1710354647150,-500.0,0.00019305,2]
[318685985,1710354647160,-500.0,0.00019342,2]
[318685986,1710354647169,-189.99491615,0.00019343,2]
[318685987,1710354647178,-151.0,0.00019355,2]
[318685988,1710354647187,-4726.72734389,0.00019355,2]
[318685989,1710354647197,-200.0,0.00019373,2]
[318685990,1710354647209,-151.0,0.00019389,2]
[318685991,1710354647218,-151.0,0.00019389,2]
[318685992,1710354647227,-183.358759,0.00019389,2]
[318685993,1710354647236,-268.725693,0.00019389,2]
[318685994,1710354647246,-268.725693,0.00019389,2]
[318685995,1710354647255,-1937.17845574,0.0001939,2]
[318685996,1710354647265,-500.0,0.00019397,2]
[318685997,1710354647275,-500.0,0.00019402,2]
[318685998,1710354647284,-582.75,0.00019403,2]
[318685999,1710354647298,-176.82188582,0.00019403,2]
[318686000,1710354647314,-252.39009223,0.00019403,2]
[318686001,1710354647328,-170.91772147,0.00019403,2]
[318686002,1710354647343,-429.45007321,0.00019403,2]
[318686003,1710354647358,-852.50630179,0.00019403,2]
[318686004,1710354647368,-325.2609667,0.00019403,2]
[318686005,1710354647378,-746.21795384,0.00019404,2]
[318686006,1710354647387,-155.12565178,0.00019404,2]
[318686007,1710354647396,-236.248783,0.00019404,2]
[318686008,1710354647406,-500.0,0.00019404,2]
[318686009,1710354647415,-500.0,0.00019404,2]
[318686010,1710354647423,-500.0,0.00019404,2]
[318686011,1710354647433,-801.97,0.00019404,2]
[318686012,1710354647442,-500.0,0.00019404,2]
[318686013,1710354647451,-217.07919021,0.00019405,2]
[318686014,1710354647460,-309.66348366,0.00019405,2]
[318686015,1710354647469,-717.53406867,0.00019406,2]
[318686016,1710354647478,-500.0,0.00019407,2]
[318686017,1710354647487,-555.51,0.00019407,2]
[318686018,1710354647496,-500.0,0.00019407,2]
[318686019,1710354647505,-1549.94,0.00019407,2]
[318686020,1710354647515,-2264.22,0.00019407,2]
[318686021,1710354647527,-830.72,0.00019407,2]
[318686022,1710354647536,-204.80125661,0.00019407,2]
[318686023,1710354647545,-155.13807537,0.00019407,2]
[318686024,1710354647555,-453.78160906,0.00019408,2]
[318686025,1710354647565,-638.86260486,0.00019408,2]
[318686026,1710354647575,-500.0,0.00019408,2]
[318686027,1710354647585,-611.31,0.00019408,2]
[318686028,1710354647594,-500.0,0.00019408,2]
[318686029,1710354647603,-818.99,0.00019408,2]
[318686030,1710354647612,-500.0,0.00019408,2]
[318686031,1710354647621,-500.0,0.00019408,2]
[318686032,1710354647630,-500.0,0.00019408,2]
[318686033,1710354647639,-500.0,0.00019408,2]
[318686034,1710354647649,-1601.77,0.00019408,2]
[318686035,1710354647658,-155.12099438,0.00019409,2]
[318686036,1710354647667,-155.19707514,0.00019409,2]
[318686037,1710354647677,-155.20409341,0.00019409,2]
[318686038,1710354647686,-442.64155494,0.00019409,2]
[318686039,1710354647696,-156.1009526,0.00019409,2]
[318686040,1710354647707,-187.37817515,0.00019409,2]
[318686041,1710354647716,-465.88759223,0.00019409,2]
[318686042,1710354647726,-331.73872667,0.00019409,2]
[318686043,1710354647735,-155.26843768,0.00019409,2]
[318686044,1710354647745,-270.23601369,0.00019409,2]
[318686045,1710354647754,-273.98795543,0.00019409,2]
[318686046,1710354647764,-7899.56120569,0.00019409,2]
[318686047,1710354647773,-2598.0033347,0.00019409,2]
[318686048,1710354647783,-616.12960483,0.00019409,2]
[318686049,1710354647792,-624.23888742,0.00019409,2]
[318686050,1710354647802,-155.14117847,0.00019409,2]
[318686051,1710354647811,-155.11323266,0.00019409,2]
[318686052,1710354647821,-289.937593,0.00019409,2]
[318686053,1710354647830,-151.0,0.00019409,2]
[318686054,1710354647841,-268.725693,0.00019409,2]
[318686055,1710354647851,-268.725693,0.00019409,2]
[318686056,1710354647860,-224.02999257,0.0001941,2]
[318686057,1710354647869,-3145.34600817,0.0001941,2]
[318686058,1710354647879,-191.38327133,0.0001941,2]
[318686059,1710354647889,-3234.2920603,0.0001941,2]
[318686060,1710354647898,-500.0,0.00019412,2]
[318686061,1710354647907,-500.0,0.00019412,2]
[318686062,1710354647916,-171.83792415,0.00019412,2]
[318686063,1710354647926,-582.75,0.00019412,2]
[318686064,1710354647935,-801.97,0.00019412,2]
[318686065,1710354647944,-2264.22,0.00019412,2]
[318686066,1710354647954,-500.0,0.00019412,2]
[318686067,1710354647963,-830.72,0.00019412,2]
[318686068,1710354647972,-611.31,0.00019413,2]
[318686069,1710354647981,-500.0,0.00019413,2]
[318686070,1710354647990,-818.99,0.00019413,2]
[318686071,1710354647999,-500.0,0.00019413,2]
[318686072,1710354648009,-500.0,0.00019413,2]
[318686073,1710354648018,-555.51,0.00019413,2]
[318686074,1710354648027,-500.0,0.00019413,2]
[318686075,1710354648038,-500.0,0.00019413,2]
[318686076,1710354648047,-1549.94,0.00019413,2]
[318686077,1710354648056,-500.0,0.00019413,2]
[318686078,1710354648066,-1601.77,0.00019413,2]
[318686079,1710354648076,-491.64832667,0.00019413,2]
[318686080,1710354648085,-806.41845803,0.00019413,2]
[318686081,1710354648095,-690.73115949,0.00019413,2]
[318686082,1710354648105,-397.11990196,0.00019413,2]
[318686237,1710355833005,-429.45007321,0.00017668,2]
[318686238,1710355833015,-155.09615962,0.00017669,2]
[318686239,1710355833024,-558.67605724,0.00017669,2]
[318686241,1710355833032,-875.5236,0.0001767,2]
[318686242,1710355833041,-704.36144243,0.00017671,2]
[318686244,1710355833050,-297.34637,0.00017677,2]
[318686246,1710355833059,-16970.53739958,0.00018075,2]
[318686248,1710355833068,-2000.0,0.00018076,2]
[318686250,1710355833077,-300.0,0.00018119,2]
[318686252,1710355833086,-465.30036136,0.00018869,2]
[318686257,1710355833127,-316.395,0.00018869,2]
[318686293,1710355838456,-77.69623841,0.00018869,2]
[318686295,1710355838465,-189.23914595,0.000189,2]
[318686297,1710355838475,-2161.06957903,0.00018973,2]
[318686299,1710355838485,-500.0,0.00019069,2]
[318686301,1710355838495,-36410.71648256,0.0001907,2]
[318686303,1710355838504,-500.0,0.00019071,2]
[318686305,1710355838513,-500.0,0.00019071,2]
[318686307,1710355838522,-774.06,0.00019071,2]
[318686309,1710355838531,-774.06,0.00019071,2]
[318686311,1710355838540,-1237.2,0.00019071,2]
[318686313,1710355838549,-1237.2,0.00019071,2]
[318686315,1710355838559,-752.9,0.00019071,2]
[318686316,1710355838568,-752.9,0.00019071,2]
[318686319,1710355838577,-500.0,0.00019071,2]
[318686321,1710355838588,-500.0,0.00019071,2]
[318686323,1710355838597,-1045.28,0.00019071,2]
[318686325,1710355838606,-1045.28,0.00019071,2]
[318686327,1710355838616,-1111.27,0.00019071,2]
[318686329,1710355838625,-1111.27,0.00019071,2]
[318686330,1710355838634,-500.0,0.00019071,2]
[318686333,1710355838643,-500.0,0.00019071,2]
[318686335,1710355838652,-500.0,0.00019071,2]
[318686336,1710355838661,-500.0,0.00019071,2]
[318686339,1710355838670,-341.78616964,0.00019071,2]
[318686340,1710355838679,-545.99,0.00019071,2]
[318686343,1710355838689,-545.99,0.00019071,2]
[318686345,1710355838698,-2210.75,0.00019071,2]
[318686347,1710355838708,-2210.75,0.00019071,2]
[318686349,1710355838717,-2210.75,0.00019071,2]
[318686350,1710355838726,-500.0,0.00019071,2]
[318686353,1710355838735,-500.0,0.00019071,2]
[318686354,1710355838745,-500.0,0.00019071,2]
[318686356,1710355838754,-2948.25,0.00019071,2]
[318686359,1710355838763,-2948.25,0.00019071,2]
[318686361,1710355838773,-500.0,0.00019071,2]
[318686363,1710355838782,-500.0,0.00019071,2]
[318686365,1710355838791,-500.0,0.00019072,2]
[318686367,1710355838800,-500.0,0.00019072,2]
[318686369,1710355838809,-500.0,0.00019072,2]
[318686370,1710355838818,-500.0,0.00019072,2]
[318686372,1710355838828,-500.0,0.00019072,2]
[318686375,1710355838837,-500.0,0.00019072,2]
[318686376,1710355838846,-500.0,0.00019072,2]
[318686378,1710355838855,-500.0,0.00019072,2]
[318686380,1710355838864,-500.0,0.00019072,2]
[318686383,1710355838874,-500.44018173,0.00019072,2]
[318686384,1710355838883,-500.0,0.00019072,2]
[318686387,1710355838892,-500.0,0.00019072,2]
[318686388,1710355838901,-209.05621972,0.00019072,2]
[318686390,1710355838910,-500.0,0.00019072,2]
[318686392,1710355838919,-500.0,0.00019072,2]
[318686395,1710355838928,-500.0,0.00019072,2]
[318686397,1710355838938,-500.0,0.00019072,2]
[318686399,1710355838948,-500.0,0.00019072,2]
[318686400,1710355838958,-500.0,0.00019072,2]
[318686402,1710355838967,-500.0,0.00019072,2]
[318686405,1710355838977,-500.0,0.00019072,2]
[318686406,1710355838988,-500.0,0.00019072,2]
[318686408,1710355838998,-500.0,0.00019072,2]
[318686411,1710355839007,-500.0,0.00019072,2]
[318686413,1710355839016,-500.0,0.00019072,2]
[318686414,1710355839028,-500.0,0.00019072,2]
[318686417,1710355839038,-500.0,0.00019072,2]
[318686418,1710355839048,-500.0,0.00019072,2]
[318686421,1710355839057,-586.40341612,0.00019072,2]
[318686423,1710355839067,-1574.36,0.00019072,2]
[318686425,1710355839076,-1574.36,0.00019072,2]
[318686427,1710355839086,-500.0,0.00019072,2]
[318686429,1710355839095,-500.0,0.00019072,2]
[318686431,1710355839105,-500.0,0.00019072,2]
[318686433,1710355839115,-370.91894643,0.00019072,2]
[318686435,1710355839125,-550.77566838,0.00019072,2]
[318686437,1710355839134,-507.37542494,0.00019072,2]
[318686439,1710355839143,-875.94,0.00019072,2]
[318686441,1710355839152,-875.94,0.00019072,2]
[318686443,1710355839161,-875.94,0.00019072,2]
[318686445,1710355839171,-774.06,0.00019072,2]
[318686447,1710355839180,-1237.2,0.00019072,2]
[318686449,1710355839189,-774.06,0.00019072,2]
[318686450,1710355839199,-1237.2,0.00019072,2]
[318686453,1710355839208,-500.0,0.00019072,2]
[318686454,1710355839218,-506.82342126,0.00019072,2]
[318686456,1710355839227,-500.0,0.00019072,2]
[318686458,1710355839237,-500.0,0.00019072,2]
[318686461,1710355839246,-500.0,0.00019072,2]
[318686463,1710355839256,-500.0,0.00019072,2]
[318686464,1710355839265,-500.0,0.00019072,2]
[318686466,1710355839274,-500.0,0.00019072,2]
[318686469,1710355839284,-752.9,0.00019072,2]
[318686470,1710355839293,-752.9,0.00019072,2]
[318686472,1710355839303,-500.0,0.00019072,2]
[318686474,1710355839311,-500.0,0.00019072,2]
[318686476,1710355839321,-500.0,0.00019072,2]
[318686478,1710355839330,-500.0,0.00019072,2]
[318686480,1710355839340,-500.0,0.00019072,2]
[318686482,1710355839349,-500.0,0.00019072,2]
[318686484,1710355839359,-500.0,0.00019072,2]
[318686487,1710355839371,-402.4218209,0.00019072,2]
[318686489,1710355839391,-97.5781791,0.00019072,2]
[318686492,1710355839403,-500.0,0.00019072,2]
[318686494,1710355839421,-500.0,0.00019072,2]
[318686496,1710355839432,-322.46291624,0.00019072,2]
[318686650,1710355840796,-177.53708376,0.00019072,2]
[318686652,1710355840807,-500.0,0.00019072,2]
[318686654,1710355840818,-500.0,0.00019072,2]
[318686656,1710355840828,-322.82741242,0.00019072,2]
[318686659,1710355840843,-177.17258758,0.00019072,2]
[318686661,1710355840855,-500.0,0.00019072,2]
[318686663,1710355840866,-500.0,0.00019072,2]
[318686665,1710355840877,-500.0,0.00019072,2]
[318686667,1710355840889,-500.0,0.00019072,2]
[318686669,1710355840901,-500.0,0.00019072,2]
[318686672,1710355840912,-500.0,0.00019072,2]
[318686674,1710355840923,-443.60236309,0.00019072,2]
[318686676,1710355840934,-500.0,0.00019072,2]
[318686678,1710355840945,-500.0,0.00019072,2]
[318686680,1710355840956,-500.0,0.00019072,2]
[318686683,1710355840967,-500.49421029,0.00019072,2]
[318686685,1710355840977,-500.0,0.00019072,2]
[318686687,1710355840987,-500.0,0.00019072,2]
[318686689,1710355840998,-500.0,0.00019072,2]
[318686691,1710355841009,-1045.28,0.00019072,2]
[318686693,1710355841019,-1045.28,0.00019072,2]
[318686695,1710355841030,-500.0,0.00019072,2]
[318686698,1710355841041,-500.0,0.00019072,2]
[318686700,1710355841052,-500.0,0.00019072,2]
[318686702,1710355841062,-1427.03,0.00019072,2]
[318686704,1710355841072,-1427.03,0.00019072,2]
[318686706,1710355841083,-1427.03,0.00019072,2]
[318686708,1710355841095,-1870.26,0.00019072,2]
[318686711,1710355841106,-1870.26,0.00019072,2]
[318686713,1710355841117,-1870.26,0.00019072,2]
[318686715,1710355841127,-500.0,0.00019072,2]
[318686716,1710355841137,-500.0,0.00019072,2]
[318686718,1710355841147,-1111.27,0.00019072,2]
[318686720,1710355841156,-1111.27,0.00019072,2]
[318686723,1710355841169,-500.0,0.00019072,2]
[318686725,1710355841181,-500.0,0.00019072,2]
[318686727,1710355841191,-500.0,0.00019072,2]
[318686729,1710355841202,-1219.93,0.00019072,2]
[318686731,1710355841213,-500.0,0.00019072,2]
[318686733,1710355841223,-500.0,0.00019072,2]
[318686735,1710355841234,-500.0,0.00019072,2]
[318686738,1710355841244,-1219.93,0.00019072,2]
[318686740,1710355841255,-1219.93,0.00019072,2]
[318686742,1710355841264,-545.99,0.00019072,2]
[318686744,1710355841275,-545.99,0.00019072,2]
[318686746,1710355841285,-163.5293896,0.00019072,2]
[318686748,1710355841296,-376.90848134,0.00019072,2]
[318686751,1710355841307,-500.0,0.00019072,2]
[318686753,1710355841318,-500.0,0.00019072,2]
[318686755,1710355841328,-500.0,0.00019072,2]
[318686757,1710355841340,-500.0,0.00019072,2]
[318686759,1710355841351,-500.0,0.00019072,2]
[318686760,1710355841362,-500.0,0.00019072,2]
[318686761,1710355841374,-500.0,0.00019072,2]
[318686762,1710355841387,-500.0,0.00019072,2]
[318686763,1710355841398,-500.0,0.00019072,2]
[318686764,1710355841414,-500.0,0.00019072,2]
[318686765,1710355841425,-500.0,0.00019072,2]
[318686766,1710355841435,-509.56792837,0.00019072,2]
[318686767,1710355841447,-2210.75,0.00019072,2]
[318686768,1710355841457,-500.0,0.00019072,2]
[318686769,1710355841467,-500.0,0.00019072,2]
[318686770,1710355841477,-374.33826781,0.00019072,2]
[318686771,1710355841487,-500.0,0.00019072,2]
[318686773,1710355841499,-500.0,0.00019072,2]
[318686775,1710355841512,-500.0,0.00019072,2]
[318686777,1710355841522,-500.0,0.00019072,2]
[318686779,1710355841534,-500.0,0.00019072,2]
[318686781,1710355841545,-2948.25,0.00019072,2]
[318686783,1710355841556,-2948.25,0.00019072,2]
[318686786,1710355841566,-3802.3,0.00019072,2]
[318686788,1710355841577,-3802.3,0.00019072,2]
[318686790,1710355841589,-500.0,0.00019072,2]
[318686792,1710355841599,-500.0,0.00019072,2]
[318686794,1710355841609,-500.0,0.00019073,2]
[318686796,1710355841622,-500.0,0.00019073,2]
[318686798,1710355841632,-500.0,0.00019073,2]
[318686801,1710355841641,-500.0,0.00019073,2]
[318686803,1710355841651,-151.0,0.00019073,2]
[318686805,1710355841662,-151.0,0.00019073,2]
[318686807,1710355841672,-500.0,0.00019073,2]
[318686809,1710355841682,-500.0,0.00019073,2]
[318686811,1710355841693,-638.34,0.00019073,2]
[318686813,1710355841703,-500.0,0.00019073,2]
[318686815,1710355841714,-500.0,0.00019073,2]
[318686817,1710355841723,-500.0,0.00019073,2]
[318686819,1710355841735,-500.0,0.00019073,2]
[318686821,1710355841745,-500.0,0.00019073,2]
[318686823,1710355841755,-500.0,0.00019073,2]
[318686825,1710355841765,-400.12059854,0.00019073,2]
[318686827,1710355841776,-395.25491374,0.00019073,2]
[318686829,1710355841786,-170.46601217,0.00019073,2]
[318686831,1710355841796,-500.0,0.00019073,2]
[318686833,1710355841806,-501.01002626,0.00019073,2]
[318686836,1710355841817,-500.0,0.00019073,2]
[318686838,1710355841828,-237.22754811,0.00019073,2]
[318686840,1710355841838,-500.0,0.00019073,2]
[318686842,1710355841849,-500.0,0.00019073,2]
[318686844,1710355841860,-501.93227839,0.00019073,2]
[318686856,1710355841966,-500.0,0.00019073,2]
[318686858,1710355841979,-500.0,0.00019073,2]
[318686860,1710355841988,-502.31478218,0.00019073,2]
[318686861,1710355841998,-519.57472686,0.00019073,2]
[318686863,1710355842008,-500.0,0.00019073,2]
[318686865,1710355842017,-500.0,0.00019073,2]
[318686867,1710355842027,-500.0,0.00019073,2]
[318686870,1710355842038,-500.0,0.00019073,2]
[318686871,1710355842048,-500.0,0.00019073,2]
[318686873,1710355842057,-500.0,0.00019073,2]
[318686876,1710355842067,-552.73131269,0.00019073,2]
[318686877,1710355842076,-500.0,0.00019073,2]
[318686879,1710355842085,-500.0,0.00019073,2]
[318686881,1710355842094,-278.18172989,0.00019073,2]
[318686883,1710355842103,-500.0,0.00019073,2]
[318686885,1710355842113,-500.0,0.00019073,2]
[318686886,1710355842122,-500.0,0.00019073,2]
[318686887,1710355842131,-710.39,0.00019073,2]
[318686888,1710355842140,-710.39,0.00019073,2]
[318686889,1710355842149,-500.0,0.00019073,2]
[318686890,1710355842159,-500.0,0.00019073,2]
[318686891,1710355842168,-500.0,0.00019073,2]
[318686892,1710355842178,-500.0,0.00019073,2]
[318686893,1710355842187,-500.0,0.00019073,2]
[318686894,1710355842197,-500.0,0.00019073,2]
[318686896,1710355842207,-500.0,0.00019073,2]
[318686898,1710355842216,-500.0,0.00019073,2]
[318686899,1710355842225,-500.0,0.00019073,2]
[318686901,1710355842235,-501.74855777,0.00019073,2]
[318686903,1710355842244,-500.0,0.00019073,2]
[318686904,1710355842254,-500.0,0.00019073,2]
[318686905,1710355842264,-500.0,0.00019073,2]
[318686906,1710355842273,-500.0,0.00019073,2]
[318686907,1710355842283,-500.0,0.00019073,2]
[318686908,1710355842292,-458.67954255,0.00019073,2]
[318686909,1710355842301,-500.0,0.00019073,2]
[318686910,1710355842310,-500.0,0.00019073,2]
[318686911,1710355842320,-500.0,0.00019102,2]
[318686912,1710355842330,-774.06,0.00019102,2]
[318686913,1710355842339,-1237.2,0.00019102,2]
[318686914,1710355842348,-752.9,0.00019102,2]
[318686915,1710355842357,-500.0,0.00019102,2]
[318686916,1710355842367,-1045.28,0.00019102,2]
[318686917,1710355842377,-1111.27,0.00019102,2]
[318686918,1710355842388,-500.0,0.00019102,2]
[318686919,1710355842398,-280.39465805,0.00019102,2]
[318686920,1710355842408,-545.99,0.00019102,2]
[318686921,1710355842417,-2210.75,0.00019102,2]
[318686922,1710355842427,-500.0,0.00019102,2]
[318686923,1710355842436,-2948.25,0.00019102,2]
[318686924,1710355842445,-500.0,0.00019102,2]
[318686925,1710355842455,-500.0,0.00019103,2]
[318686926,1710355842465,-332.00290826,0.00019103,2]
[318686927,1710355842474,-500.0,0.00019103,2]
[318686928,1710355842483,-500.0,0.00019103,2]
[318686929,1710355842493,-500.0,0.00019103,2]
[318686930,1710355842502,-500.0,0.00019103,2]
[318686931,1710355842513,-500.0,0.00019103,2]
[318686932,1710355842523,-500.0,0.00019103,2]
[318686933,1710355842532,-500.0,0.00019103,2]
[318686934,1710355842543,-500.0,0.00019103,2]
[318686935,1710355842552,-500.0,0.00019103,2]
[318686936,1710355842562,-500.0,0.00019103,2]
[318686937,1710355842571,-500.0,0.00019103,2]
[318686939,1710355842580,-1574.36,0.00019103,2]
[318686941,1710355842590,-500.0,0.00019103,2]
[318686943,1710355842599,-500.0,0.00019103,2]
[318686944,1710355842608,-875.94,0.00019103,2]
[318686946,1710355842618,-875.94,0.00019103,2]
[318686948,1710355842628,-774.06,0.00019103,2]
[318686950,1710355842638,-1237.2,0.00019103,2]
[318686951,1710355842647,-500.0,0.00019103,2]
[318686953,1710355842656,-500.0,0.00019103,2]
[318686955,1710355842665,-752.9,0.00019103,2]
[318686956,1710355842674,-501.43373043,0.00019103,2]
[318686957,1710355842683,-500.0,0.00019103,2]
[318686958,1710355842692,-500.0,0.00019103,2]
[318686960,1710355842702,-500.0,0.00019103,2]
[318686962,1710355842712,-151.38477445,0.00019103,2]
[318686963,1710355842721,-500.0,0.00019103,2]
[318686964,1710355842730,-500.0,0.00019103,2]
[318686965,1710355842739,-500.0,0.00019103,2]
[318686966,1710355842752,-500.0,0.00019103,2]
[318686967,1710355842762,-500.0,0.00019103,2]
[318686968,1710355842771,-500.0,0.00019103,2]
[318686969,1710355842780,-1045.28,0.00019103,2]
[318686970,1710355842789,-500.0,0.00019103,2]
[318686971,1710355842799,-500.0,0.00019103,2]
[318686972,1710355842808,-1427.03,0.00019103,2]
[318686973,1710355842817,-1427.03,0.00019103,2]
[318686974,1710355842826,-1870.26,0.00019103,2]
[318686975,1710355842837,-1870.26,0.00019103,2]
[318686976,1710355842847,-1111.27,0.00019103,2]
[318686977,1710355842856,-500.0,0.00019103,2]
[318686978,1710355842865,-500.0,0.00019103,2]
[318686979,1710355842874,-500.0,0.00019103,2]
[318686980,1710355842883,-1219.93,0.00019103,2]
[318686981,1710355842892,-1219.93,0.00019103,2]
[318686982,1710355842901,-545.99,0.00019103,2]
[318686984,1710355842910,-500.0,0.00019103,2]
[318686986,1710355842919,-493.97784447,0.00019103,2]
[318686987,1710355842928,-500.0,0.00019103,2]
[318686988,1710355842938,-500.0,0.00019103,2]
[318686989,1710355842947,-252.27428166,0.00019103,2]
[318686990,1710355842956,-2210.75,0.00019103,2]
[318686991,1710355842966,-2210.75,0.00019103,2]
[318686994,1710355842975,-500.0,0.00019103,2]
[318686997,1710355842985,-500.0,0.00019103,2]
[318687000,1710355842994,-500.0,0.00019103,2]
[318687002,1710355843003,-2948.25,0.00019103,2]
[318687003,1710355843013,-3802.3,0.00019103,2]
[318687004,1710355843022,-500.0,0.00019103,2]